[Event "ONJK 2024 ABC"]
[Site "Velp, Netherlands"]
[Date "2024.08.07"]
[Round "8.13"]
[White "Meert, Maarin"]
[Black "Roebers, Bregje"]
[Result "1/2-1/2"]
[TimeControl "90 minutes + 30 seconds"]
[WhiteElo "1811"]
[BlackElo "1796"]

1. c4 {[%clk 01:30:58]} {[%emt 00:00:02]} f5 {[%clk 01:30:36]} {[%emt
00:00:24]} 2. d4 {[%clk 01:31:20]} {[%emt 00:00:08]} g6 {[%clk 01:30:50]}
{[%emt 00:00:16]} 3. Nc3 {[%clk 01:31:26]} {[%emt 00:00:24]} Nf6 {[%clk
01:30:50]} {[%emt 00:00:28]} 4. Nf3 {[%clk 01:31:28]} {[%emt 00:00:31]} Bg7
{[%clk 01:30:32]} {[%emt 00:00:48]} 5. Bf4 {[%clk 01:30:46]} {[%emt 00:01:12]}
O-O {[%clk 01:28:11]} {[%emt 00:02:52]} 6. h3 {[%clk 01:28:42]} {[%emt
00:02:34]} d6 {[%clk 01:26:22]} {[%emt 00:02:18]} 7. e3 {[%clk 01:27:30]}
{[%emt 00:01:41]} c6 {[%clk 01:25:24]} {[%emt 00:01:28]} 8. Be2 {[%clk
01:24:55]} {[%emt 00:03:06]} Nbd7 {[%clk 01:23:16]} {[%emt 00:02:38]} 9. O-O
{[%clk 01:24:56]} {[%emt 00:00:28]} Qe8 {[%clk 01:20:36]} {[%emt 00:03:07]} 10.
d5 {[%clk 01:22:28]} {[%emt 00:03:03]} c5 {[%clk 01:18:49]} {[%emt 00:02:16]}
11. Qc2 {[%clk 01:16:13]} {[%emt 00:06:44]} Nb8 {[%clk 01:09:23]} {[%emt
00:09:56]} 12. Rab1 {[%clk 01:13:10]} {[%emt 00:03:33]} Na6 {[%clk 01:06:57]}
{[%emt 00:02:52]} 13. a3 {[%clk 01:13:17]} {[%emt 00:00:27]} h6 {[%clk
01:05:07]} {[%emt 00:02:19]} 14. b4 {[%clk 01:08:31]} {[%emt 00:05:17]} b6
{[%clk 01:02:41]} {[%emt 00:02:56]} 15. b5 {[%clk 01:06:16]} {[%emt 00:02:45]}
Nc7 {[%clk 01:02:24]} {[%emt 00:00:47]} 16. Bd3 {[%clk 01:04:39]} {[%emt
00:02:08]} g5 {[%clk 00:57:44]} {[%emt 00:05:09]} 17. Bh2 {[%clk 01:03:58]}
{[%emt 00:01:11]} Nh5 {[%clk 00:53:43]} {[%emt 00:04:32]} 18. Nd2 {[%clk
01:01:22]} {[%emt 00:03:06]} Qf7 {[%clk 00:49:48]} {[%emt 00:04:24]} 19. Ne2
{[%clk 00:52:27]} {[%emt 00:09:25]} Kh8 {[%clk 00:41:33]} {[%emt 00:08:45]} 20.
f4 {[%clk 00:48:43]} {[%emt 00:04:13]} gxf4 {[%clk 00:37:10]} {[%emt 00:04:54]}
21. Nxf4 {[%clk 00:47:16]} {[%emt 00:01:57]} Nxf4 {[%clk 00:36:02]} {[%emt
00:01:40]} 22. Rxf4 {[%clk 00:44:55]} {[%emt 00:02:49]} e6 {[%clk 00:31:34]}
{[%emt 00:04:59]} 23. e4 {[%clk 00:41:25]} {[%emt 00:03:59]} Bd4+ {[%clk
00:29:53]} {[%emt 00:02:12]} 24. Kh1 {[%clk 00:41:10]} {[%emt 00:00:45]} e5
{[%clk 00:29:48]} {[%emt 00:00:35]} 25. Rf3 {[%clk 00:39:33]} {[%emt 00:02:07]}
f4 {[%clk 00:28:29]} {[%emt 00:01:49]} 26. Bg1 {[%clk 00:34:32]} {[%emt
00:05:32]} Qh5 {[%clk 00:25:07]} {[%emt 00:03:51]} 27. Bxd4 {[%clk 00:33:02]}
{[%emt 00:02:00]} exd4 {[%clk 00:22:52]} {[%emt 00:02:45]} 28. Kg1 {[%clk
00:25:10]} {[%emt 00:08:22]} Rg8 {[%clk 00:21:28]} {[%emt 00:01:54]} 29. Kf1
{[%clk 00:21:08]} {[%emt 00:04:32]} Bd7 {[%clk 00:18:36]} {[%emt 00:03:23]} 30.
Nb3 {[%clk 00:18:55]} {[%emt 00:02:43]} Rg3 {[%clk 00:16:36]} {[%emt 00:02:30]}
31. Rxg3 {[%clk 00:16:35]} {[%emt 00:02:50]} fxg3 {[%clk 00:16:59]} {[%emt
00:00:07]} 32. Kg1 {[%clk 00:16:37]} {[%emt 00:00:28]} Bxh3 {[%clk 00:11:03]}
{[%emt 00:06:25]} 33. gxh3 {[%clk 00:16:29]} {[%emt 00:00:38]} Qxh3 {[%clk
00:11:29]} {[%emt 00:00:05]} 34. Qg2 {[%clk 00:16:32]} {[%emt 00:00:27]} Qg4
{[%clk 00:10:47]} {[%emt 00:01:12]} 35. Rf1 {[%clk 00:16:05]} {[%emt 00:00:57]}
h5 {[%clk 00:10:12]} {[%emt 00:01:06]} 36. Qf3 {[%clk 00:14:59]} {[%emt
00:01:36]} Qh3 {[%clk 00:08:33]} {[%emt 00:02:09]} 37. Qf6+ {[%clk 00:14:39]}
{[%emt 00:00:50]} Kg8 {[%clk 00:08:18]} {[%emt 00:00:45]} 38. Qf7+ {[%clk
00:11:31]} {[%emt 00:03:37]} Kh8 {[%clk 00:08:31]} {[%emt 00:00:17]} 39. Qf6+
{[%clk 00:11:53]} {[%emt 00:00:09]} Kg8 {[%clk 00:08:52]} {[%emt 00:00:09]} 40.
Qg5+ {[%clk 00:11:13]} {[%emt 00:01:09]} Kh8 {[%clk 00:09:05]} {[%emt
00:00:17]} 41. Qf6+ {[%clk 00:10:53]} {[%emt 00:00:50]} 1/2-1/2

[Event "ONJK 2024 ABC"]
[Site "Velp, Netherlands"]
[Date "2024.08.07"]
[Round "8.14"]
[White "Zhao, Nick"]
[Black "De Jong, Lode"]
[Result "1/2-1/2"]
[TimeControl "90 minutes + 30 seconds"]
[WhiteElo "1836"]
[BlackElo "1755"]

1. d4 {[%clk 01:30:59]} Nf6 {[%clk 01:30:57]} {[%emt 00:00:04]} 2. c4 {[%clk
01:31:25]} {[%emt 00:00:04]} e6 {[%clk 01:31:25]} {[%emt 00:00:02]} 3. Nf3
{[%clk 01:31:51]} {[%emt 00:00:04]} Bb4+ {[%clk 01:31:52]} {[%emt 00:00:03]} 4.
Bd2 {[%clk 01:32:14]} {[%emt 00:00:07]} Qe7 {[%clk 01:32:18]} {[%emt 00:00:04]}
5. g3 {[%clk 01:32:38]} {[%emt 00:00:06]} Nc6 {[%clk 01:32:44]} {[%emt
00:00:05]} 6. Bg2 {[%clk 01:32:42]} {[%emt 00:00:25]} Bxd2+ {[%clk 01:33:05]}
{[%emt 00:00:09]} 7. Nbxd2 {[%clk 01:27:42]} {[%emt 00:05:29]} d6 {[%clk
01:33:15]} {[%emt 00:00:22]} 8. e4 {[%clk 01:25:58]} {[%emt 00:02:14]} a5
{[%clk 01:32:54]} {[%emt 00:00:51]} 9. O-O {[%clk 01:25:35]} {[%emt 00:00:52]}
e5 {[%clk 01:33:20]} {[%emt 00:00:04]} 10. d5 {[%clk 01:21:59]} {[%emt
00:04:06]} Nb8 {[%clk 01:33:43]} {[%emt 00:00:08]} 11. Ne1 {[%clk 01:21:03]}
{[%emt 00:01:25]} h5 {[%clk 01:33:34]} {[%emt 00:00:39]} 12. Nd3 {[%clk
01:14:42]} {[%emt 00:06:50]} b6 {[%clk 01:32:19]} {[%emt 00:01:45]} 13. f4
{[%clk 01:07:32]} {[%emt 00:07:40]} h4 {[%clk 01:25:27]} {[%emt 00:07:22]} 14.
f5 {[%clk 00:53:27]} {[%emt 00:14:35]} hxg3 {[%clk 01:24:16]} {[%emt 00:01:42]}
15. hxg3 {[%clk 00:53:18]} {[%emt 00:00:39]} Nh5 {[%clk 01:21:47]} {[%emt
00:02:59]} 16. g4 {[%clk 00:42:28]} {[%emt 00:11:20]} Nf6 {[%clk 01:13:25]}
{[%emt 00:08:52]} 17. Kf2 {[%clk 00:42:00]} {[%emt 00:00:58]} g6 {[%clk
01:12:21]} {[%emt 00:01:34]} 18. g5 {[%clk 00:38:24]} {[%emt 00:04:06]} Nh7
{[%clk 01:09:34]} {[%emt 00:03:17]} 19. f6 {[%clk 00:38:35]} {[%emt 00:00:19]}
Qf8 {[%clk 01:09:49]} {[%emt 00:00:14]} 20. Nf3 {[%clk 00:38:11]} {[%emt
00:00:54]} Bg4 {[%clk 01:09:02]} {[%emt 00:01:17]} 21. Qd2 {[%clk 00:38:28]}
{[%emt 00:00:13]} Nd7 {[%clk 01:08:58]} {[%emt 00:00:34]} 22. Rh1 {[%clk
00:34:48]} {[%emt 00:04:09]} O-O-O {[%clk 01:07:57]} {[%emt 00:01:32]} 23. Nh2
{[%clk 00:26:12]} {[%emt 00:09:05]} Ndxf6 {[%clk 00:58:55]} {[%emt 00:09:33]}
24. gxf6 {[%clk 00:25:15]} {[%emt 00:01:27]} Bd7 {[%clk 00:57:27]} {[%emt
00:01:59]} 25. Bf3 {[%clk 00:21:52]} {[%emt 00:03:53]} Nxf6 {[%clk 00:57:17]}
{[%emt 00:00:39]} 26. Qg5 {[%clk 00:21:35]} {[%emt 00:00:46]} Qg7 {[%clk
00:56:45]} {[%emt 00:01:03]} 27. Ng4 {[%clk 00:21:09]} {[%emt 00:00:57]} Bxg4
{[%clk 00:56:32]} {[%emt 00:00:42]} 28. Bxg4+ {[%clk 00:21:30]} {[%emt
00:00:09]} Kb7 {[%clk 00:56:38]} {[%emt 00:00:23]} 29. Ke3 {[%clk 00:21:08]}
{[%emt 00:00:52]} Rdg8 {[%clk 00:55:29]} {[%emt 00:01:39]} 30. Bf3 {[%clk
00:18:22]} {[%emt 00:03:16]} Nd7 {[%clk 00:51:54]} {[%emt 00:04:06]} 31. Rxh8
{[%clk 00:14:45]} {[%emt 00:04:07]} Rxh8 {[%clk 00:52:03]} {[%emt 00:00:20]} 32.
Rh1 {[%clk 00:14:37]} {[%emt 00:00:37]} f6 {[%clk 00:51:32]} {[%emt 00:01:01]}
33. Qg2 {[%clk 00:14:18]} {[%emt 00:00:49]} Rxh1 {[%clk 00:51:31]} {[%emt
00:00:31]} 34. Qxh1 {[%clk 00:14:42]} {[%emt 00:00:07]} f5 {[%clk 00:51:51]}
{[%emt 00:00:09]} 35. Kd2 {[%emt 00:00:46]} Nf6 {[%clk 00:51:24]} {[%emt
00:00:55]} 36. Kc3 {[%clk 00:14:11]} {[%emt 00:00:47]} g5 {[%clk 00:51:13]}
{[%emt 00:00:41]} 37. Kc2 {[%clk 00:09:17]} {[%emt 00:05:24]} g4 {[%clk
00:51:01]} {[%emt 00:00:42]} 38. Bg2 {[%clk 00:09:06]} {[%emt 00:00:42]} f4
{[%clk 00:51:17]} {[%emt 00:00:14]} 39. Nf2 {[%clk 00:06:11]} {[%emt 00:03:24]}
f3 {[%clk 00:50:15]} {[%emt 00:01:32]} 40. Bxf3 {[%clk 00:06:23]} {[%emt
00:00:18]} 1/2-1/2

[Event "ONJK 2024 ABC"]
[Site "Velp, Netherlands"]
[Date "2024.08.07"]
[Round "8.15"]
[White "De Wit, Evan"]
[Black "Dijkhuijsen, Thomas"]
[Result "1-0"]
[TimeControl "90 minutes + 30 seconds"]
[WhiteElo "1782"]
[BlackElo "1750"]

1. d4 {[%clk 01:30:58]} Nf6 {[%clk 01:30:56]} {[%emt 00:00:05]} 2. Bg5 {[%clk
01:31:23]} {[%emt 00:00:05]} c5 {[%clk 01:31:00]} {[%emt 00:00:26]} 3. d5
{[%clk 01:31:48]} {[%emt 00:00:05]} d6 {[%clk 01:30:47]} {[%emt 00:00:43]} 4.
c4 {[%clk 01:31:41]} {[%emt 00:00:37]} g6 {[%clk 01:30:24]} {[%emt 00:00:53]} 5.
Bxf6 {[%clk 01:31:40]} {[%emt 00:00:32]} exf6 {[%clk 01:30:45]} {[%emt
00:00:08]} 6. Nc3 {[%clk 01:31:57]} {[%emt 00:00:14]} Bg7 {[%clk 01:30:47]}
{[%emt 00:00:28]} 7. e4 {[%clk 01:32:08]} {[%emt 00:00:19]} Nd7 {[%clk
01:29:55]} {[%emt 00:01:22]} 8. Be2 {[%clk 01:31:34]} {[%emt 00:01:04]} O-O
{[%clk 01:29:19]} {[%emt 00:01:06]} 9. Nf3 {[%clk 01:31:50]} {[%emt 00:00:12]}
Ne5 {[%clk 01:29:36]} {[%emt 00:00:14]} 10. O-O {[%clk 01:31:35]} {[%emt
00:00:45]} Re8 {[%clk 01:28:52]} {[%emt 00:01:14]} 11. Nd2 {[%clk 01:31:10]}
{[%emt 00:00:55]} f5 {[%clk 01:27:08]} {[%emt 00:02:15]} 12. f4 {[%clk
01:31:00]} {[%emt 00:00:40]} Ng4 {[%clk 01:26:21]} {[%emt 00:01:17]} 13. Bxg4
{[%clk 01:30:24]} {[%emt 00:01:05]} fxg4 {[%clk 01:26:03]} {[%emt 00:00:49]} 14.
f5 {[%clk 01:27:42]} {[%emt 00:03:12]} Bd4+ {[%clk 01:23:15]} {[%emt 00:03:18]}
15. Kh1 {[%clk 01:28:00]} {[%emt 00:00:12]} Qh4 {[%clk 01:15:05]} {[%emt
00:08:40]} 16. Rf4 {[%clk 01:17:58]} {[%emt 00:10:32]} Bxc3 {[%clk 01:02:22]}
{[%emt 00:13:13]} 17. bxc3 {[%clk 01:17:27]} {[%emt 00:01:01]} Qf6 {[%clk
01:00:46]} {[%emt 00:02:06]} 18. Qf1 {[%clk 01:11:50]} {[%emt 00:06:07]} Qxc3
{[%clk 00:57:20]} {[%emt 00:03:57]} 19. Rd1 {[%clk 01:05:13]} {[%emt 00:07:06]}
Bd7 {[%clk 00:50:32]} {[%emt 00:07:18]} 20. Rxg4 {[%clk 01:01:37]} {[%emt
00:04:06]} Ba4 {[%clk 00:48:51]} {[%emt 00:02:11]} 21. Nb3 {[%clk 01:01:48]}
{[%emt 00:00:18]} Bxb3 {[%clk 00:48:31]} {[%emt 00:00:51]} 22. axb3 {[%clk
01:02:12]} {[%emt 00:00:06]} a5 {[%clk 00:42:33]} {[%emt 00:06:28]} 23. Qf4
{[%clk 00:58:11]} {[%emt 00:04:31]} Qe5 {[%clk 00:38:32]} {[%emt 00:04:32]} 24.
Qh6 {[%clk 00:55:01]} {[%emt 00:03:39]} Qg7 {[%clk 00:35:45]} {[%emt 00:03:17]}
25. Qh4 {[%clk 00:43:53]} {[%emt 00:11:37]} Re5 {[%clk 00:33:03]} {[%emt
00:03:13]} 26. Qg3 {[%clk 00:41:31]} {[%emt 00:02:52]} Rae8 {[%clk 00:26:54]}
{[%emt 00:06:39]} 27. Rf1 {[%clk 00:37:41]} {[%emt 00:04:19]} Qf6 {[%clk
00:22:59]} {[%emt 00:04:26]} 28. Qf3 {[%clk 00:34:52]} {[%emt 00:03:18]} Qe7
{[%clk 00:19:42]} {[%emt 00:03:47]} 29. fxg6 {[%clk 00:30:30]} {[%emt
00:04:52]} fxg6 {[%clk 00:19:22]} {[%emt 00:00:49]} 30. Rf4 {[%clk 00:30:10]}
{[%emt 00:00:51]} Rxe4 {[%clk 00:13:48]} {[%emt 00:06:04]} 31. Rf7 {[%clk
00:30:25]} {[%emt 00:00:14]} Qd8 {[%clk 00:12:46]} {[%emt 00:01:33]} 32. Rxb7
{[%clk 00:23:10]} {[%emt 00:07:45]} R4e7 {[%clk 00:10:30]} {[%emt 00:02:47]} 33.
Rxe7 {[%clk 00:22:42]} {[%emt 00:00:57]} Qxe7 {[%clk 00:10:49]} {[%emt
00:00:11]} 34. h3 {[%clk 00:22:05]} {[%emt 00:01:06]} Rf8 {[%clk 00:10:37]}
{[%emt 00:00:42]} 35. Qd1 {[%clk 00:18:37]} {[%emt 00:03:58]} Rxf1+ {[%clk
00:10:24]} {[%emt 00:00:44]} 36. Qxf1 {[%clk 00:18:54]} {[%emt 00:00:13]} Qe3
{[%clk 00:09:58]} {[%emt 00:00:57]} 37. Qf6 {[%clk 00:18:17]} {[%emt 00:01:06]}
Qe1+ {[%clk 00:09:57]} {[%emt 00:00:30]} 38. Kh2 {[%clk 00:18:30]} {[%emt
00:00:17]} Qe5+ {[%clk 00:09:25]} {[%emt 00:01:03]} 39. Qxe5 {[%clk 00:18:49]}
{[%emt 00:00:10]} dxe5 {[%clk 00:09:45]} {[%emt 00:00:10]} 40. Kg3 {[%clk
00:19:02]} {[%emt 00:00:17]} Kf7 {[%clk 00:08:04]} {[%emt 00:02:12]} 41. Kf3
{[%clk 00:19:19]} {[%emt 00:00:14]} h6 {[%clk 00:05:46]} {[%emt 00:02:46]} 42.
g3 {[%clk 00:16:15]} {[%emt 00:03:36]} Ke7 {[%clk 00:04:31]} {[%emt 00:01:45]}
43. Ke3 {[%clk 00:16:25]} {[%emt 00:00:19]} Kf7 {[%clk 00:04:32]} {[%emt
00:00:29]} 44. Ke4 {[%clk 00:16:20]} {[%emt 00:00:35]} Kf6 {[%clk 00:04:39]}
{[%emt 00:00:23]} 45. d6 {[%clk 00:16:43]} {[%emt 00:00:07]} Ke6 {[%clk
00:04:55]} {[%emt 00:00:14]} 46. d7 {[%clk 00:17:06]} {[%emt 00:00:08]} Kxd7
{[%clk 00:05:11]} {[%emt 00:00:13]} 47. Kxe5 {[%clk 00:17:29]} {[%emt
00:00:07]} Kc6 {[%clk 00:03:43]} {[%emt 00:01:59]} 48. Ke6 {[%clk 00:17:57]}
{[%emt 00:00:02]} Kc7 {[%clk 00:02:08]} {[%emt 00:02:04]} 49. Kd5 {[%clk
00:18:20]} {[%emt 00:00:07]} h5 {[%clk 00:02:05]} {[%emt 00:00:33]} 50. h4
{[%clk 00:18:48]} {[%emt 00:00:02]} Kb6 {[%clk 00:02:27]} {[%emt 00:00:08]} 51.
Kd6 {[%clk 00:19:14]} {[%emt 00:00:05]} a4 {[%clk 00:02:51]} {[%emt 00:00:07]}
52. bxa4 {[%clk 00:19:38]} {[%emt 00:00:04]} Ka5 {[%clk 00:03:16]} {[%emt
00:00:06]} 53. Kxc5 {[%clk 00:19:59]} {[%emt 00:00:08]} Kxa4 {[%clk 00:03:46]}
54. Kd6 {[%clk 00:20:15]} {[%emt 00:00:15]} Ka5 {[%clk 00:04:02]} {[%emt
00:00:15]} 55. c5 {[%clk 00:20:39]} {[%emt 00:00:06]} g5 {[%clk 00:04:15]}
{[%emt 00:00:17]} 56. hxg5 {[%clk 00:21:03]} {[%emt 00:00:06]} h4 {[%clk
00:04:35]} {[%emt 00:00:09]} 57. gxh4 {[%clk 00:21:29]} {[%emt 00:00:05]} Ka6
{[%clk 00:04:41]} {[%emt 00:00:24]} 58. c6 {[%clk 00:21:52]} {[%emt 00:00:06]}
Kb6 {[%clk 00:05:09]} {[%emt 00:00:02]} 59. Kd7 {[%clk 00:22:13]} {[%emt
00:00:08]} Ka6 {[%clk 00:05:21]} {[%emt 00:00:20]} 60. c7 {[%clk 00:22:36]}
{[%emt 00:00:06]} Ka5 {[%clk 00:05:42]} {[%emt 00:00:11]} 61. c8=Q {[%clk
00:22:53]} {[%emt 00:00:12]} Kb4 {[%clk 00:06:06]} {[%emt 00:00:07]} 62. Qc2
{[%clk 00:23:05]} {[%emt 00:00:16]} Kb5 {[%clk 00:06:23]} {[%emt 00:00:15]} 63.
Qc3 {[%clk 00:23:22]} {[%emt 00:00:13]} Kb6 {[%clk 00:06:44]} {[%emt 00:00:10]}
64. Qc4 {[%clk 00:23:38]} {[%emt 00:00:13]} Kb7 {[%clk 00:07:07]} {[%emt
00:00:07]} 65. Qb5+ {[%clk 00:24:03]} {[%emt 00:00:05]} Ka7 {[%clk 00:07:18]}
{[%emt 00:00:19]} 66. Kc8 {[%clk 00:24:19]} {[%emt 00:00:14]} Ka8 {[%clk
00:07:45]} {[%emt 00:00:04]} 67. Qa6# {[%clk 00:24:40]} {[%emt 00:00:08]} 1-0

[Event "ONJK 2024 ABC"]
[Site "Velp, Netherlands"]
[Date "2024.08.07"]
[Round "8.16"]
[White "Georgopoulos, Mylo"]
[Black "Lejzerowicz, Nathan"]
[Result "1-0"]
[TimeControl "90 minutes + 30 seconds"]
[WhiteElo "1776"]
[BlackElo "1668"]

1. e4 {[%clk 01:30:57]} {[%emt 00:00:03]} c5 {[%clk 01:30:39]} {[%emt
00:00:22]} 2. Nf3 {[%clk 01:31:23]} {[%emt 00:00:04]} Nc6 {[%clk 01:30:44]}
{[%emt 00:00:25]} 3. d4 {[%clk 01:31:49]} {[%emt 00:00:04]} cxd4 {[%clk
01:30:19]} {[%emt 00:00:55]} 4. Nxd4 {[%clk 01:32:14]} {[%emt 00:00:05]} g6
{[%clk 01:30:02]} {[%emt 00:00:47]} 5. Nc3 {[%clk 01:32:32]} {[%emt 00:00:11]}
Bg7 {[%clk 01:29:57]} {[%emt 00:00:34]} 6. Be3 {[%clk 01:32:48]} {[%emt
00:00:14]} Nf6 {[%clk 01:29:39]} {[%emt 00:00:49]} 7. Bb5 {[%clk 01:32:12]}
{[%emt 00:01:06]} O-O {[%clk 01:28:30]} {[%emt 00:01:39]} 8. O-O {[%clk
01:32:17]} {[%emt 00:00:25]} a6 {[%clk 01:26:25]} {[%emt 00:02:35]} 9. Bxc6
{[%clk 01:31:01]} {[%emt 00:01:46]} bxc6 {[%clk 01:24:48]} {[%emt 00:02:07]} 10.
Qd2 {[%clk 01:30:25]} {[%emt 00:01:06]} Qc7 {[%clk 01:21:10]} {[%emt 00:04:08]}
11. Nf3 {[%clk 01:28:40]} {[%emt 00:02:15]} d6 {[%clk 01:17:32]} {[%emt
00:04:08]} 12. Bh6 {[%clk 01:27:15]} {[%emt 00:01:54]} Rb8 {[%clk 01:16:11]}
{[%emt 00:01:51]} 13. Bxg7 {[%clk 01:27:06]} {[%emt 00:00:40]} Kxg7 {[%clk
01:16:19]} {[%emt 00:00:22]} 14. b3 {[%clk 01:27:19]} {[%emt 00:00:17]} Bd7
{[%clk 01:12:06]} {[%emt 00:04:42]} 15. Rfe1 {[%clk 01:24:23]} {[%emt
00:03:27]} Bg4 {[%clk 01:04:59]} {[%emt 00:07:36]} 16. e5 {[%clk 01:22:32]}
{[%emt 00:02:21]} Bxf3 {[%clk 01:03:28]} {[%emt 00:02:01]} 17. exf6+ {[%clk
01:22:41]} {[%emt 00:00:21]} exf6 {[%clk 01:02:46]} {[%emt 00:01:12]} 18. gxf3
{[%clk 01:22:55]} {[%emt 00:00:16]} h5 {[%clk 00:58:29]} {[%emt 00:04:48]} 19.
Qf4 {[%clk 01:21:21]} {[%emt 00:02:04]} f5 {[%clk 00:52:01]} {[%emt 00:06:58]}
20. Rad1 {[%clk 01:20:47]} {[%emt 00:01:04]} Rbd8 {[%clk 00:51:00]} {[%emt
00:01:30]} 21. Ne2 {[%clk 01:19:13]} {[%emt 00:02:05]} Qa5 {[%clk 00:47:09]}
{[%emt 00:04:21]} 22. Ng3 {[%clk 01:17:20]} {[%emt 00:02:23]} Qxa2 {[%clk
00:42:43]} {[%emt 00:04:55]} 23. Nxh5+ {[%clk 01:09:35]} {[%emt 00:08:15]} Kh7
{[%clk 00:34:17]} {[%emt 00:08:56]} 24. Rxd6 {[%clk 01:03:58]} {[%emt
00:06:07]} Qxc2 {[%clk 00:30:42]} {[%emt 00:04:05]} 25. Rxd8 {[%clk 01:01:47]}
{[%emt 00:02:40]} Rxd8 {[%clk 00:30:25]} {[%emt 00:00:47]} 26. Nf6+ {[%clk
00:56:55]} {[%emt 00:05:23]} Kg7 {[%clk 00:29:41]} {[%emt 00:01:15]} 27. Ne8+
{[%clk 00:53:30]} {[%emt 00:03:55]} Kg8 {[%clk 00:22:11]} {[%emt 00:07:59]} 28.
Qe5 {[%clk 00:53:24]} {[%emt 00:00:36]} Rxe8 {[%clk 00:22:06]} {[%emt
00:00:36]} 29. Qxe8+ {[%clk 00:53:47]} {[%emt 00:00:06]} Kg7 {[%clk 00:22:28]}
{[%emt 00:00:08]} 30. Qe5+ {[%clk 00:53:17]} {[%emt 00:01:00]} Kg8 {[%clk
00:22:15]} {[%emt 00:00:43]} 31. Qf6 {[%clk 00:53:06]} {[%emt 00:00:41]} Qc5
{[%emt 00:05:59]} 32. Re8+ {[%clk 00:53:20]} {[%emt 00:00:15]} Qf8 {[%clk
00:17:08]} {[%emt 00:00:09]} 33. Rxf8+ {[%clk 00:53:46]} {[%emt 00:00:04]} Kxf8
{[%clk 00:17:32]} {[%emt 00:00:06]} 34. Qxc6 {[%clk 00:54:11]} {[%emt
00:00:04]} a5 {[%clk 00:17:55]} {[%emt 00:00:08]} 35. Qa8+ {[%clk 00:54:38]}
{[%emt 00:00:04]} Ke7 {[%clk 00:18:12]} {[%emt 00:00:12]} 36. Qxa5 {[%clk
00:55:03]} {[%emt 00:00:05]} f4 {[%clk 00:18:32]} {[%emt 00:00:11]} 37. b4
{[%clk 00:55:27]} {[%emt 00:00:07]} g5 {[%clk 00:18:46]} {[%emt 00:00:15]} 38.
Qxg5+ {[%clk 00:55:53]} {[%emt 00:00:04]} f6 {[%clk 00:19:00]} {[%emt
00:00:16]} 39. Qxf4 {[%clk 00:56:20]} {[%emt 00:00:03]} f5 {[%clk 00:18:54]}
{[%emt 00:00:37]} 40. Qe5+ {[%clk 00:56:40]} {[%emt 00:00:09]} Kd8 {[%clk
00:19:11]} {[%emt 00:00:12]} 41. Qg7 {[%clk 00:57:00]} {[%emt 00:00:10]} f4
{[%clk 00:19:16]} {[%emt 00:00:26]} 42. h4 {[%clk 00:57:23]} {[%emt 00:00:06]}
Kc8 {[%clk 00:19:33]} {[%emt 00:00:14]} 43. h5 {[%clk 00:57:44]} {[%emt
00:00:10]} Kd8 {[%clk 00:19:58]} {[%emt 00:00:05]} 44. h6 {[%clk 00:58:10]}
{[%emt 00:00:03]} Ke8 {[%clk 00:20:10]} {[%emt 00:00:18]} 45. h7 {[%clk
00:58:36]} {[%emt 00:00:03]} Kd8 {[%clk 00:20:32]} {[%emt 00:00:08]} 46. h8=Q#
{[%clk 00:58:57]} {[%emt 00:00:09]} 1-0